Cogmind - Beta 13 @@@ ROGUE MODE // 2024.04.03 @ 19:29:18 Player: writers.room Result: Destroyed by Y-45 Defender with Beam Rifle Performance ------------- Evolutions (2) 1000 Regions Visited (4) 800 Robots Destroyed (4) 20 Value Destroyed (196) 196 Prototype IDs (0) 0 Alien Tech Used (0) 0 Bonus (477) 477 TOTAL SCORE: 2493 Bonus ------- Pacifist 470 Follower Combat Kills 7 Cogmind --------- Core Integrity 0/550 Matter 147/300 Energy 95/100 System Corruption 7% Temperature Cool (60) Movement Flying (35) Location -8/Materials Parts ------- > --- POWER (2) -------- (None) > --- PROPULSION (3) --- Cesium-ion Thruster > --- UTILITY (4) ------ (None) > --- WEAPON (2) ------- Heavy Hammer > --- INVENTORY (5) ---- Huge Storage Unit Weight Redist. System Weight Redist. System Weight Redist. System Peak State ------------ > --- POWER ------------ Deuterium Engine > --- PROPULSION ------- (None) > --- UTILITY ---------- Weight Redist. System Trap Scanner > --- WEAPON ----------- Improved Light Cannon Improved Light Cannon > --- INVENTORY -------- Huge Storage Unit Weight Redist. System Weight Redist. System Weight Redist. System [Rating: 12] Favorites ----------- Power Deuterium Engine Engine Deuterium Engine Propulsion Cesium-ion Thruster Flight Unit Cesium-ion Thruster Utility Weight Redist. System Device Weight Redist. System Storage Huge Storage Unit Weapon Improved Light Cannon Energy Gun Particle Gun Ballistic Cannon Improved Light Cannon Impact Weapon Heavy Hammer Build | -11 -10 -10 -9 -8 ------- Run | Yrd Mat Min Mat Mat Slots Evolved 4 | . . . 2 2 Power 1 | . . . . 1 Propulsion 1 | . . . 1 . Utility 2 | . . . 1 1 Weapon . | . . . . . Parts Attached 13 | . . . . 13 Power 1 | . . . . 1 Engine 1 | . . . . 1 Core . | . . . . . Reactor . | . . . . . Propulsion 1 | . . . . 1 Treads . | . . . . . Leg . | . . . . . Wheel . | . . . . . Hover . | . . . . . Flight 1 | . . . . 1 Utility 7 | . . . . 7 Device 6 | . . . . 6 Storage 1 | . . . . 1 Processor . | . . . . . Hackware . | . . . . . Protection . | . . . . . Artifact . | . . . . . Weapon 4 | . . . . 4 Energy Gun 1 | . . . . 1 Energy Cannon . | . . . . . Ballistic Gun . | . . . . . Ballistic Cannon 2 | . . . . 2 Launcher . | . . . . . Special Weapon . | . . . . . Impact Weapon 1 | . . . . 1 Slashing Weapon . | . . . . . Piercing Weapon . | . . . . . Special Melee Weapon . | . . . . . Unidentified Prototypes . | . . . . . Parts Lost 6 | . . . . 6 Power 1 | . . . . 1 Propulsion . | . . . . . Utility 2 | . . . . 2 Weapon 3 | . . . . 3 Highest Loss Streak 6 | . . . . 6 To Critical Strikes . | . . . . . Average Slot Usage (%) 13 | . . . . 21 Engine 2 | . . . . 3 Flight 1 | . . . . 1 Device 5 | . . . . 8 Ballistic Cannon 4 | . . . . 6 Naked Turns 241 | . 30 70 64 77 Heaviest Build 19 | . . . . 19 Greatest Support 9 | 3 3 3 3 9 Greatest Overweight (x) 2 | . . . . 2 Average Overweight (x) . | . . . . . Largest Inventory Capacity 25 | 5 5 5 5 25 Average Capacity 5 | 5 5 5 5 5 Most Carried 5 | . . . 1 5 Average Carried 2 | . . . . 3 Final Capacity 5 | 5 5 5 5 5 Final Carried 4 | . . . 1 4 Class Distribution -------------------- 100% | Mutant Dominant Class ---------------- Mutant | -10/Materials Mutant | -10/Mines Mutant | -9/Materials Mutant | -8/Materials Resources | -11 -10 -10 -9 -8 ----------- Run | Yrd Mat Min Mat Mat Matter Collected 125 | 77 . . . 48 Remotely . | . . . . . Salvage Created 171 | . . . . 171 Parts 12 | . . . . 12 Haulers Intercepted . | . . . . . Recyclers Shooed . | . . . . . Parts Field Recycled . | . . . . . Retrieved Matter . | . . . . . Parts Self-Destructed . | . . . . . Prevented . | . . . . . Kills | -11 -10 -10 -9 -8 ------- Run | Yrd Mat Min Mat Mat Combat Hostiles Destroyed 4 | . . . . 4 Cannons 2 | . . . . 2 AOE 2 | . . . . 2 Classes Destroyed 2 | . . . . 2 Grunt 3 | . . . . 3 Sentry 1 | . . . . 1 Best Kill Streak 2 | . . . . 2 Combat Bots Only 2 | . . . . 2 Max Kills in Single Turn 2 | . . . . 2 Gunslinging . | . . . . . Exploded 2 | . . . . 2 Melee . | . . . . . Uniques/NPCs Destroyed . | . . . . . Combat | -11 -10 -10 -9 -8 -------- Run | Yrd Mat Min Mat Mat Hostile Shots Fired 98 | . 6 8 . 84 Missed 28 | . 3 2 . 23 Damage Taken 1127 | . 34 47 . 1046 Core 644 | . 34 47 . 563 Absorbed by Shields . | . . . . . Core Remaining (%) 89 | 100 . 67 100 . Volleys Fired 9 | . . . . 9 Largest 2 | . . . . 2 Hottest 78 | . . . . 78 Shots Fired 14 | . . . . 14 Gun 1 | . . . . 1 Cannon 13 | . . . . 13 Launcher . | . . . . . Special . | . . . . . Kinetic 13 | . . . . 13 Thermal 1 | . . . . 1 Explosive . | . . . . . Electromagnetic . | . . . . . Robot Hit Streak 4 | . . . . 4 Robot Miss Streak 1 | . . . . 1 Penetration Max . | . . . . . Secondary Targets . | . . . . . Shots Hit Robots 10 | . . . . 10 Core Hits 18 | . . . . 18 Critical Kills . | . . . . . Critical Parts Destroyed . | . . . . . Critical Strikes . | . . . . . Melee Attacks 2 | . . . . 2 Impact 2 | . . . . 2 Slashing . | . . . . . Piercing . | . . . . . Sneak Attacks . | . . . . . Combat Hostiles . | . . . . . Follow-up Attacks . | . . . . . Damage Inflicted 652 | . . . . 652 Guns 15 | . . . . 15 Cannons 224 | . . . . 224 Explosions 350 | . . . . 350 Melee . | . . . . . Ramming 63 | . . . . 63 Kinetic 224 | . . . . 224 Thermal 15 | . . . . 15 Explosive . | . . . . . Electromagnetic 350 | . . . . 350 Impact . | . . . . . Slashing . | . . . . . Piercing . | . . . . . Highest Corruption 7 | . . . . 7 Average Corruption 6 | . . . . 6 Corruption Purged . | . . . . . Corruption Blocked . | . . . . . Effects 4 | . . . . 4 Heat Flow Errors 2 | . . . . 2 Data Loss (minor) 1 | . . . . 1 Data Loss (major) 1 | . . . . 1 Overload Shots . | . . . . . Overflow Damage . | . . . . . Projectiles . | . . . . . Explosions . | . . . . . Melee . | . . . . . Knockbacks 2 | . . . . 2 Impact . | . . . . . Kinetic 2 | . . . . 2 Secondary . | . . . . . Self-Inflicted Damage 67 | . . . . 67 Shots 1 | . . . . 1 Rammed 22 | . . 1 . 21 Targets Rammed 22 | . . 1 . 21 Kicked . | . . . . . Crushed . | . . . . . Highest Temperature 258 | . . . . 258 Average Temperature 70 | . . . . 70 Received Heat Transfer 468 | . 18 . . 450 Siege Activations . | . . . . . Robots Corrupted . | . . . . . Combat Hostiles . | . . . . . Parts Fried . | . . . . . Impact Corruptions . | . . . . . Robots Melted . | . . . . . Combat Hostiles . | . . . . . Parts Melted . | . . . . . Heat Transferred 37 | . . . . 37 Parts Sabotaged . | . . . . . Parts Stolen . | . . . . . Parts Stripped . | . . . . . Power Chain Reactions . | . . . . . Alert | -11 -10 -10 -9 -8 ------- Run | Yrd Mat Min Mat Mat Peak Influence 143 | . 15 64 31 143 Initial 16 | . . 5 16 13 Average 33 | . 7 38 19 39 Maximum Alert Level . | . . . . . Low Security (%) 100 | 100 100 100 100 100 Level 1 . | . . . . . Level 2 . | . . . . . Level 3 . | . . . . . Level 4 . | . . . . . Level 5 . | . . . . . High Security . | . . . . . Max Security . | . . . . . Squads Dispatched 4 | . . . . 4 Investigation . | . . . . . Extermination . | . . . . . Reinforcement 4 | . . . . 4 Assault . | . . . . . Garrison . | . . . . . Intercept . | . . . . . Searches Triggered . | . . . . . Construction Impeded . | . . . . . Haulers Reinforced . | . . . . . Active Scanning Responses . | . . . . . Cargo Convoy Interrupts . | . . . . . Stealth | -11 -10 -10 -9 -8 --------- Run | Yrd Mat Min Mat Mat Distress Signals 2 | . . . . 2 Communications Jammed . | . . . . . Distress Signals . | . . . . . Times Spotted 32 | . 3 6 . 23 Peak Tracking Total 12 | . 3 3 . 12 Tactical Retreats 2 | . . 1 . 1 Traps | -11 -10 -10 -9 -8 ------- Run | Yrd Mat Min Mat Mat Traps Triggered . | . . . . . Indirectly . | . . . . . Trap Hack Attempts . | . . . . . Triggered . | . . . . . Disarmed . | . . . . . Reprogrammed . | . . . . . Reused . | . . . . . Traps Extracted . | . . . . . Installed . | . . . . . Triggered . | . . . . . Machines | -11 -10 -10 -9 -8 ---------- Run | Yrd Mat Min Mat Mat Machines Disabled 1 | . . . . 1 Max in Single Turn 1 | . . . . 1 Machines Repaired . | . . . . . Machines Dismantled . | . . . . . Machines Sabotaged . | . . . . . Overloaded Fab Kills . | . . . . . Hacking | -11 -10 -10 -9 -8 --------- Run | Yrd Mat Min Mat Mat Machines Accessed . | . . . . . Terminals . | . . . . . Fabricators . | . . . . . Repair Stations . | . . . . . Recycling Units . | . . . . . Scanalyzers . | . . . . . Garrison Access . | . . . . . Total Hacks . | . . . . . Successful . | . . . . . Failed . | . . . . . Catastrophic . | . . . . . Database Lockouts . | . . . . . Manual . | . . . . . Terminals . | . . . . . Fabricators . | . . . . . Repair Stations . | . . . . . Recycling Units . | . . . . . Scanalyzers . | . . . . . Garrison Access . | . . . . . Terminal Hacks . | . . . . . Fabricator Hacks . | . . . . . Repair Station Hacks . | . . . . . Recycling Unit Hacks . | . . . . . Scanalyzer . | . . . . . Garrison Access Hacks . | . . . . . Unauthorized Hacks . | . . . . . Terminals . | . . . . . Fabricators . | . . . . . Repair Stations . | . . . . . Recycling Units . | . . . . . Scanalyzers . | . . . . . Garrison Access . | . . . . . Data Cores Recovered . | . . . . . Used . | . . . . . Hacking Detections . | . . . . . Full Trace Events . | . . . . . Feedback Events . | . . . . . Feedback Blocked . | . . . . . Robot Schematics Acquired . | . . . . . Robots Built . | . . . . . Authchips . | . . . . . Time . | . . . . . Total Robot Build Rating . | . . . . . Part Schematics Acquired . | . . . . . Parts Built . | . . . . . Authchips . | . . . . . Time . | . . . . . Total Part Build Rating . | . . . . . Parts Repaired . | . . . . . Time . | . . . . . Parts Recycled . | . . . . . Recycled Matter . | . . . . . Retrieved Matter . | . . . . . Retrieved Components . | . . . . . Parts Scanalyzed . | . . . . . Part Schematics Acquired . | . . . . . Parts Damaged . | . . . . . Bothacking | -11 -10 -10 -9 -8 ------------ Run | Yrd Mat Min Mat Mat Used RIF Installer . | . . . . . Robots Hacked . | . . . . . Non-combat . | . . . . . Combat . | . . . . . Robot Hacks Applied . | . . . . . Relay Couplers Released . | . . . . . Fabnet Peak Effective % . | . . . . . Robots Rewired . | . . . . . Allies Hacked . | . . . . . Hacks Repelled . | . . . . . Allies | -11 -10 -10 -9 -8 -------- Run | Yrd Mat Min Mat Mat Total Allies 2 | . . 2 . . Largest Group 2 | . . 2 . . Highest-Rated Group 41 | . . 41 . . Highest-Rated Ally 31 | . . 31 . . Total Orders . | . . . . . Ally Attacks 6 | . . 6 . . Total Damage 41 | . . 41 . . Kills 1 | . . 1 . . Allies Corrupted . | . . . . . Allies Melted . | . . . . . Intel | -11 -10 -10 -9 -8 ------- Run | Yrd Mat Min Mat Mat Robot Analysis Total . | . . . . . Derelict Logs Recovered 1 | . . 1 . . Drone Launches . | . . . . . Drone Recoveries . | . . . . . Exploration | -11 -10 -10 -9 -8 ------------- Run | Yrd Mat Min Mat Mat Turns Passed 459 | 12 30 70 64 283 Spaces Moved 659 | 25 59 123 125 327 Core 538 | 25 59 123 125 206 Treads . | . . . . . Legs . | . . . . . Wheels . | . . . . . Hover . | . . . . . Flight 121 | . . . . 121 Fastest Speed 35 | 50 50 50 50 35 Average Speed 55 | 50 50 50 50 61 Slowest Speed 150 | 50 50 50 50 150 Overloaded Moves . | . . . . . Propulsion Burnouts . | . . . . . Robots Hopped 1 | . . . . 1 Cave-ins Triggered . | . . . . . Exploration Rate (%) 20 | 3 20 29 14 38 Regions Visited 4 Branch Regions 1 Pre-discovered Areas . | . . . . . Known Exits Taken 1 | . . . 1 . Unknown Exits Taken 3 | 1 1 1 . . Scrap Searched . | . . . . . Spaces Dug . | . . . . . Terrain Destroyed . | . . . . . Melee . | . . . . . Projectile . | . . . . . AOE . | . . . . . Terrain Rammed . | . . . . . Walls Destroyed . | . . . . . Machines Disabled . | . . . . . Actions | -11 -10 -10 -9 -8 --------- Run | Yrd Mat Min Mat Mat Total 726 | 24 58 130 125 389 Wait 18 | . . 7 . 11 Move 653 | 24 58 122 124 325 Hop 1 | . . . . 1 Pick Up 2 | . . . 1 1 Fast Attach 12 | . . . . 12 Attach 1 | . . . . 1 Detach 4 | . . . . 4 Swap . | . . . . . Drop 2 | . . . . 2 Fire 9 | . . . . 9 Melee 2 | . . . . 2 Ram 22 | . . 1 . 21 Kick . | . . . . . Crush . | . . . . . Escape Stasis . | . . . . . Rewire . | . . . . . Trap . | . . . . . Miscellaneous . | . . . . . Route ------- -11/Scrapyard -10/Materials -10/Mines (discovered 2 exits: [*Mat x2]) -9/Materials (discovered 2 exits: *Mat x2) -8/Materials History --------- Turn | Location | Event 2 | -11/Scrapyard | Discovered new exit (range 16) 13 | -11/Scrapyard | Entered Materials 37 | -10/Materials | Discovered new exit (range 10) 43 | -10/Materials | Entered Mines 79 | -10/Mines | Received a Rocket Launcher from a helpful Derelict 83 | -10/Mines | Learned location of 1 exit from Materials 108 | -10/Mines | Discovered new exit (range 9) 108 | -10/Mines | Discovered new exit (range 11) 113 | -10/Mines | Entered Materials 113 | -9/Materials | Evolved 2 slots: Propulsion x1, Utility x1 114 | -9/Materials | Identified exit to Materials 169 | -9/Materials | Discovered exit to Materials (range 11) 177 | -9/Materials | Entered another Materials area 177 | -8/Materials | Evolved 2 slots: Power x1, Utility x1 318 | -8/Materials | Build established: Mutant 346 | -8/Materials | Core integrity fell below 50% 360 | -8/Materials | Core integrity fell below 20% 384 | -8/Materials | Lost 6 parts (1p2u3w) 460 | -8/Materials | Destroyed by Y-45 Defender with Beam Rifle Last Messages --------------- 00401_ Acquired Cesium-ion Thruster. 00407_ O-16 Technician: "IFF HANDSHAKE FAILED. SECURING TERMINAL." 00410_ O-16 Technician uses terminal to summon reinforcements. 00410_ ALERT: Hostiles spotted, dispatching reinforcements to Terminal M012. 00410_ O-16 Technician locks terminal. 00411_ ALERT: Hostiles spotted, dispatching reinforcements to Terminal M005. 00412_ ALERT: Hostiles spotted, dispatching reinforcements to Terminal M003. 00428_ System corrupted: Substantial component data lost. 00440_ Acquired Hvy. Hammer. 00454_ K-01 Serf cleans the Terminal. 00455_ System corrupted: Heat flow error (+179). 00457_ K-01 Serf cleans the Terminal. 00460_ Neutrino Reactor explodes. 00460_ G-50 Soldier shuts down. 00460_ G-47 Trooper destroyed. 00460_ Y-45 Defender destroyed. 00460_ Door malfunctions. Map ----- +----------------------------------------------------+ | ??????????????????????????# #??????????? | | ??????????????????????????# #??????????? | | ??????????????????????????# #?#########? | | ??????????????????????????# # "T" ] #? | | ??????????????????????????# # #? | | ???????????????????######## + """ ?? | | ???????????????????# # """"" ??? | | ?????????########### # """""???? | | ????????? # #? """"????? | | ?????????? # ##? """????? | | ??????????"" """ # ^ #??? ????? | | ??????????"" """ # """ #???#####???? | | ???????# """ """ + """ #???????????? | | ???????# """ # """ #?#########?? | | ???????# ! # #?# ? | | ???????############# #?# """ "" # | | ??????????????????# """ ### """ T" # | | ??????????????????# """ # """ "" # | | ??????????????????# """ + """ # | | ??????????????????# ! # """ = # | | ??????????????????# # ! # | | ????????????????#####g###### # !# | | ????????????????# ] !!= ## ##+##+####? | | ????????????????# *ggYg## T #???? | | ????????????????# "" =[[%## #???? | | ????????????????# ""g @## #???? | | ??########?#???## "T g## """ #???? | | ??# #? ???# "" #### """ #???? | | ??# #? ???## ""k a #??#! """ #???? | | ??# #? ?# /! #??# #???? | | ### #? """?##+########??# !#???? | | + #? """??# #?????????# """ ###?? | | ### #? ""???# #?????????# """ ""#?? | | ??#####+##? ???# #???####### """ T"#?? | | ?????# ###+##### #???? # ""#?? | | ?????# #???? """ # ###?? | | ?????# #?????"Y" # """ #???? | | ?????# #????? # """ #???? | | ?????# #?????? # """ #???? | | ?????# #?????? # #???? | | ?????# ########+## #???? | | ?????# #???? | | #######+#### ##+#######???? | | #????? ??# # ????????? | | #?????"" ??+ # ! ""??????? | | ????""" ?####### """#????? | | #+##+#######????""" ???????# S"#????? | | ??????????????? ??????# ! #????? | | ???????????????#######??????#########????? | | ?????????????????????????????????????????? | +----------------------------------------------------+ Best States ------------- Heat Dissipation 31 Energy Generation 14 Energy Capacity 275 Matter Stores 179 Matter Capacity 300 Sight Range 16 Terrain Scan Density 10 Additional Mass Support 6 Evasion (%) 63 Item Schematics ----------------- None Robot Schematics ------------------ None Fabricated ------------ Nothing Alien Tech Used ----------------- None Achievements -------------- None Challenges ------------ None Game ------ Seed ReactionStormPrototype Manual? 0 Play Time 00:10:16 Cumulative 30.7 hours Start 2024.04.03 @ 19:22:48 End 2024.04.03 @ 19:29:18 Sessions 1 Manual Loads 0 Difficulty Rogue Special Mode None Game No. 78 Rogue 38 Adventurer 14 Explorer 26 Win Type - Total 0 Types 0/0/0/0/0/0/0/0/0 Lore% 21 Gallery% 30 Achievement% 26 Wizard Run 0 Options --------- Layout 0 ASCII 0 Keyboard 1 Movement Vi Keybinds 0 Fullscreen 1 Font 18/SmallcapsGlow Map View 76x50 Zoom Use 0% Tactical HUD 1 Map Filters NONE Filters NONE Steam 1 RUN: abe79056-49ce-490f-b82b-0c8689daca1a